Workbook

Sheet Data
B1: EXPENSE REPORT
B4: EMPLOYEE NAME | F4: APPROVER | J4: REPORT DATE | M4: TOTAL CLAIM
A6: # | B6: DATE | C6: LOCATION | D6: DESCRIPTION | E6: ATTENDEES | F6: RECEIPT | G6: MEALS | H6: TRAVEL MEALS | I6: HOTEL | J6: AIR TRAVEL | K6: FUEL | L6: OTHER AMOUNT | M6: OTHER CATEGORY | N6: TIP | O6: TAX | P6: TOTAL EXPENSE
A7: =IF(B7="","",1) ->  | P7: =IF(A7="","",SUM(G7:L7)+SUM(N7:O7)) -> 
A8: =IF(B8="","",A7+1) ->  | P8: =IF(A8="","",SUM(G8:L8)+SUM(N8:O8)) -> 
A9: =IF(B9="","",A8+1) -> 
A58: TOTALS | G58: =SUM(G7:G57) -> 0 | H58: =SUM(H7:H57) -> 0 | I58: 0 | J58: =SUM(J7:J57) -> 0 | K58: 0 | L58: 0 | M58: 0 | N58: =SUM(N7:N57) -> 0 | O58: =SUM(O7:O57) -> 0 | P58: =IF(A58="","",SUM(G58:L58)+N58+O58) -> 0
A59: Comments: | H59: EMPLOYEE REVIEW | J59: =IF(employeesignature="","",employeesignature) ->  | L59: MANAGER REVIEW | N59: =IF(managersignature="","",managersignature) -> 

Sheet Setup (hidden)
A1: Expense Categories | B1: Limit | C1: GL Code | D1: PerAtt | F1: Locations | G1: GL Code | J1: GL Accounts | K1: GL Code | M1: Report Status
A2: AIR TRAVEL | B2: 2000 | C2: 5000 | F2: Location A | G2: -100 | J2: Credit Account | K2: 2000-100 | M2: Ready for Manager Review
A3: CAR RENTAL | B3: 500 | C3: 5050 | F3: Location B | G3: -200 | J3: Tax Account | K3: 2200
A4: ENTERTAINMENT | B4: 500 | C4: 5100 | F4: Location C | G4: -300
A5: FUEL | B5: 200 | C5: 5150 | F5: Location D | G5: -400 | M5: Employee Signature
A6: HOTEL | B6: 1000 | C6: 5200 | F6: Location E | G6: -500 | M6: Manager Signature
A7: MEALS | B7: 50 | C7: 5250 | D7: X
A8: MEMBERSHIPS | B8: 1000 | C8: 5300 | F8: Accounting Password | G8: 5678
A9: OFFICE SUPPLIES | B9: 100 | C9: 5350
A10: PROFESSIONAL FEES | B10: 1000 | C10: 5400 | F10: Employee
A11: RECRUITMENT FEES | B11: 500 | C11: 5450 | F11: Employee A
A12: REPAIRS & MAINTENANCE | B12: 1000 | C12: 5500 | F12: Employee B
A13: SOFTWARE | B13: 500 | C13: 5550 | F13: Employee C
A14: TELEPHONE | B14: 200 | C14: 5600 | F14: Employee D
A15: TRAINING | B15: 1000 | C15: 5650 | F15: Employee E
A16: TRAVEL MEALS | B16: 50 | C16: 5700 | D16: X
F17: Approver | G17: Password
A18: TIPPING | B18: 0.2 | C18: 5800 | F18: Approver A | G18: AAA
F19: Approver B | G19: BBB
F20: Approver C | G20: CCC
F21: Approver D | G21: DDD
F22: Approver E | G22: EEE

Sheet Manager (hidden)
A2: Reviewable Items
A3: # | B3: DATE | C3: BRANCH | D3: DESCRIPTION | E3: ATTENDEES | F3: RECEIPT | G3: COST CATEGORY | H3: EXPENSE | I3: TIP | J3: TAX | K3: TOTAL EXPENSE | L3: REVIEWABLE REASON | M3: MANAGER COMMENTS
A4: 1 | B4: 2017-01-01 | C4: Location A | D4: Eating Out | E4: 2 | F4: Not Attached | G4: MEALS | H4: 200 | I4: 75 | J4: 10 | K4: 285 | L4: Excessive tipping
A5: 1 | B5: 2017-01-01 | C5: Location A | D5: Eating Out | E5: 2 | F5: Not Attached | G5: MEALS | H5: 200 | I5: 75 | J5: 10 | K5: 285 | L5: No receipt

Sheet Accounting (hidden)
C1: GL # | D1: Account | E1: Debit | F1: Credit | G1: Memo | L1: =INDEX(Setup!$A:$A,MATCH(Accounting!L$2,Setup!$C:$C,0),1) -> MEALS | M1: =INDEX(Setup!$A:$A,MATCH(Accounting!M$2,Setup!$C:$C,0),1) -> TRAVEL MEALS | N1: =INDEX(Setup!$A:$A,MATCH(Accounting!N$2,Setup!$C:$C,0),1) -> HOTEL | O1: =INDEX(Setup!$A:$A,MATCH(Accounting!O$2,Setup!$C:$C,0),1) -> AIR TRAVEL | P1: =INDEX(Setup!$A:$A,MATCH(Accounting!P$2,Setup!$C:$C,0),1) -> FUEL | Q1: TIP | R1: TAX | U1: TRAVEL MEALS | V1: FUEL
C2: 2000-100 | D2: EXPENSES PAYABLE | F2: 0 | G2: Employee A - Employee A | L2: =VLOOKUP(Data!G$6,Setup!$A:$C,3,FALSE) -> 5250 | M2: =VLOOKUP(Data!H$6,Setup!$A:$C,3,FALSE) -> 5700 | N2: =VLOOKUP(Data!I$6,Setup!$A:$C,3,FALSE) -> 5200 | O2: =VLOOKUP(Data!J$6,Setup!$A:$C,3,FALSE) -> 5000 | P2: =VLOOKUP(Data!K$6,Setup!$A:$C,3,FALSE) -> 5150 | T2: OTHER
J3: =Setup!F2 -> Location A | K3: =VLOOKUP(J3,Setup!F:G,2,FALSE) -> -100 | L3: =IF(L$2="",0,SUMIF(Data!$C$7:$C$57,Accounting!$J3,Data!G$7:G$57)) -> 0 | M3: =IF(M$2="",0,SUMIF(Data!$C$7:$C$57,Accounting!$J3,Data!H$7:H$57)) -> 0 | N3: =IF(N$2="",0,SUMIF(Data!$C$7:$C$57,Accounting!$J3,Data!I$7:I$57)) -> 0 | O3: =IF(O$2="",0,SUMIF(Data!$C$7:$C$57,Accounting!$J3,Data!J$8:J$57)) -> 0 | P3: =IF(P$2="",0,SUMIF(Data!$C$7:$C$57,Accounting!$J3,Data!K$7:K$57)) -> 0 | Q3: =IF(Q$1="",0,SUMIF(Data!$C$7:$C$57,Accounting!$J3,Data!N$7:N$57)) -> 0 | R3: =IF(R$1="",0,SUMIF(Data!$C$7:$C$57,Accounting!$J3,Data!O$7:O$57)) -> 0
J4: =Setup!F3 -> Location B | K4: =VLOOKUP(J4,Setup!F:G,2,FALSE) -> -200 | L4: =IF(L$2="",0,SUMIF(Data!$C$7:$C$57,Accounting!$J4,Data!G$7:G$57)) -> 0 | M4: =IF(M$2="",0,SUMIF(Data!$C$7:$C$57,Accounting!$J4,Data!H$7:H$57)) -> 0 | N4: =IF(N$2="",0,SUMIF(Data!$C$7:$C$57,Accounting!$J4,Data!I$7:I$57)) -> 0 | O4: =IF(O$2="",0,SUMIF(Data!$C$7:$C$57,Accounting!$J4,Data!J$8:J$57)) -> 0 | P4: =IF(P$2="",0,SUMIF(Data!$C$7:$C$57,Accounting!$J4,Data!K$7:K$57)) -> 0 | Q4: =IF(Q$1="",0,SUMIF(Data!$C$7:$C$57,Accounting!$J4,Data!N$7:N$57)) -> 0 | R4: =IF(R$1="",0,SUMIF(Data!$C$7:$C$57,Accounting!$J4,Data!O$7:O$57)) -> 0
J5: =Setup!F4 -> Location C | K5: =VLOOKUP(J5,Setup!F:G,2,FALSE) -> -300 | L5: =IF(L$2="",0,SUMIF(Data!$C$7:$C$57,Accounting!$J5,Data!G$7:G$57)) -> 0 | M5: =IF(M$2="",0,SUMIF(Data!$C$7:$C$57,Accounting!$J5,Data!H$7:H$57)) -> 0 | N5: =IF(N$2="",0,SUMIF(Data!$C$7:$C$57,Accounting!$J5,Data!I$7:I$57)) -> 0 | O5: =IF(O$2="",0,SUMIF(Data!$C$7:$C$57,Accounting!$J5,Data!J$8:J$57)) -> 0 | P5: =IF(P$2="",0,SUMIF(Data!$C$7:$C$57,Accounting!$J5,Data!K$7:K$57)) -> 0 | Q5: =IF(Q$1="",0,SUMIF(Data!$C$7:$C$57,Accounting!$J5,Data!N$7:N$57)) -> 0 | R5: =IF(R$1="",0,SUMIF(Data!$C$7:$C$57,Accounting!$J5,Data!O$7:O$57)) -> 0
J6: =Setup!F5 -> Location D | K6: =VLOOKUP(J6,Setup!F:G,2,FALSE) -> -400 | L6: =IF(L$2="",0,SUMIF(Data!$C$7:$C$57,Accounting!$J6,Data!G$7:G$57)) -> 0 | M6: =IF(M$2="",0,SUMIF(Data!$C$7:$C$57,Accounting!$J6,Data!H$7:H$57)) -> 0 | N6: =IF(N$2="",0,SUMIF(Data!$C$7:$C$57,Accounting!$J6,Data!I$7:I$57)) -> 0 | O6: =IF(O$2="",0,SUMIF(Data!$C$7:$C$57,Accounting!$J6,Data!J$8:J$57)) -> 0 | P6: =IF(P$2="",0,SUMIF(Data!$C$7:$C$57,Accounting!$J6,Data!K$7:K$57)) -> 0 | Q6: =IF(Q$1="",0,SUMIF(Data!$C$7:$C$57,Accounting!$J6,Data!N$7:N$57)) -> 0 | R6: =IF(R$1="",0,SUMIF(Data!$C$7:$C$57,Accounting!$J6,Data!O$7:O$57)) -> 0
J7: =Setup!F6 -> Location E | K7: =VLOOKUP(J7,Setup!F:G,2,FALSE) -> -500 | L7: =IF(L$2="",0,SUMIF(Data!$C$7:$C$57,Accounting!$J7,Data!G$7:G$57)) -> 0 | M7: =IF(M$2="",0,SUMIF(Data!$C$7:$C$57,Accounting!$J7,Data!H$7:H$57)) -> 0 | N7: =IF(N$2="",0,SUMIF(Data!$C$7:$C$57,Accounting!$J7,Data!I$7:I$57)) -> 0 | O7: =IF(O$2="",0,SUMIF(Data!$C$7:$C$57,Accounting!$J7,Data!J$8:J$57)) -> 0 | P7: =IF(P$2="",0,SUMIF(Data!$C$7:$C$57,Accounting!$J7,Data!K$7:K$57)) -> 0 | Q7: =IF(Q$1="",0,SUMIF(Data!$C$7:$C$57,Accounting!$J7,Data!N$7:N$57)) -> 0 | R7: =IF(R$1="",0,SUMIF(Data!$C$7:$C$57,Accounting!$J7,Data!O$7:O$57)) -> 0
